Cogmind - Beta 10.1 @@@ ROGUE MODE // 2020.09.28 @ 18:07:07 // AFD2020/Player2 Player: Minty Result: Core destroyed Performance ------------- Evolutions (1) 500 Regions Visited (4) 800 Robots Destroyed (15) 75 Value Destroyed (367) 367 Prototype IDs (0) 0 Alien Tech Used (0) 0 Bonus (325) 325 TOTAL SCORE: 2067 Bonus ------- Follower Combat Kills 325 Cogmind --------- Core Integrity 0/400 Matter 275/300 Energy 238/290 System Corruption 4% Temperature Cool (4) Movement Rolling (100) Location -9/Mines Parts ------- > --- POWER (1) -------- Improved Deuterium Engine > --- PROPULSION (2) --- Compact Wheel Compact Wheel > --- UTILITY (3) ------ Improved Heat Sink Hacking Suite > --- WEAPON (3) ------- Lightning Gun Arc Projector > --- INVENTORY (4) ---- Improved Ion Engine Wheel Flight Unit Flight Unit Peak State ------------ > --- POWER ------------ Improved Deuterium Engine > --- PROPULSION ------- Compact Wheel Compact Wheel > --- UTILITY ---------- Improved Heat Sink Large Battery Hacking Suite > --- WEAPON ----------- Lightning Gun Arc Projector Pulse Rifle > --- INVENTORY -------- Improved Ion Engine Wheel Flight Unit Flight Unit [Rating: 24] Favorites ----------- Power Light Ion Engine Engine Light Ion Engine Power Core Nuclear Core Propulsion Compact Wheel Wheel Compact Wheel Flight Unit Flight Unit Utility Improved Heat Sink Device Improved Heat Sink Storage Large Battery Processor Signal Interpreter Hackware Hacking Suite Weapon Pulse Rifle Energy Gun Pulse Rifle Ballistic Gun Light Assault Rifle Ballistic Cannon Assault Cannon Build | -11 -10 -10 -9 -9 ------- Run | Scr Mat Min Mat Min Slots Evolved 2 | . . . 2 . Power . | . . . . . Propulsion . | . . . . . Utility 1 | . . . 1 . Weapon 1 | . . . 1 . Parts Attached 28 | 6 3 8 6 5 Power 4 | 1 . . 1 2 Engine 3 | 1 . . . 2 Core 1 | . . . 1 . Reactor . | . . . . . Propulsion 7 | 2 . 4 . 1 Treads . | . . . . . Leg . | . . . . . Wheel 5 | 2 . 2 . 1 Hover . | . . . . . Flight 2 | . . 2 . . Utility 8 | 1 3 2 2 . Device 3 | . 1 2 . . Storage 2 | 1 . . 1 . Processor 2 | . 2 . . . Hackware 1 | . . . 1 . Protection . | . . . . . Artifact . | . . . . . Weapon 9 | 2 . 2 3 2 Energy Gun 6 | . . 1 3 2 Energy Cannon . | . . . . . Ballistic Gun 2 | 2 . . . . Ballistic Cannon 1 | . . 1 . . Launcher . | . . . . . Special Weapon . | . . . . . Impact Weapon . | . . . . . Slashing Weapon . | . . . . . Piercing Weapon . | . . . . . Special Melee Weapon . | . . . . . Unidentified Prototypes . | . . . . . Parts Lost 6 | . . 2 . 4 Power 1 | . . . . 1 Propulsion 2 | . . 2 . . Utility 1 | . . . . 1 Weapon 2 | . . . . 2 Highest Loss Streak 3 | . . 2 . 3 Average Slot Usage (%) 89 | . 81 94 83 81 Engine 11 | . 14 14 1 7 Core 1 | . . . 9 3 Wheel 20 | . 28 22 11 18 Device 19 | . 3 24 16 11 Storage 3 | . 1 . 7 10 Processor 2 | . 5 3 . . Hackware 2 | . . . 5 11 Energy Gun 13 | . . 8 30 20 Ballistic Gun 8 | . 28 11 . . Ballistic Cannon 5 | . . 8 1 . Naked Turns . | . . . . . Heaviest Build 25 | 9 9 13 21 25 Greatest Support 32 | 26 26 26 16 32 Greatest Overweight (x) 4 | . . 4 1 1 Average Overweight (x) . | . . . . . Largest Inventory Capacity 6 | 6 6 4 4 4 Average Capacity 4 | 4 4 4 4 4 Most Carried 4 | . . 4 4 4 Average Carried 2 | . . 2 3 3 Final Capacity 6 | 6 4 4 4 4 Final Carried 4 | . . 4 4 4 Class Distribution -------------------- 81% | Mutant 11% | Gunner 6% | Skirmisher Dominant Class ---------------- Mutant | -10/Materials Mutant | -10/Mines Gunner | -9/Materials Mutant | -9/Mines Resources | -11 -10 -10 -9 -9 ----------- Run | Scr Mat Min Mat Min Matter Collected 528 | 260 34 154 60 20 Remotely . | . . . . . Salvage Created 324 | . 19 113 148 44 Parts 28 | . 1 13 8 6 Haulers Intercepted . | . . . . . Recyclers Shooed 1 | . . 1 . . Parts Field Recycled . | . . . . . Retrieved Matter . | . . . . . Parts Self-Destructed . | . . . . . Prevented . | . . . . . Kills | -11 -10 -10 -9 -9 ------- Run | Scr Mat Min Mat Min Combat Hostiles Destroyed 11 | . 1 4 3 3 Guns 10 | . 1 3 3 3 Cannons 1 | . . 1 . . Classes Destroyed 7 | . 1 2 3 1 Builder 2 | . . 1 . 1 Tunneler 1 | . . 1 . . Operator 1 | . . . 1 . Swarmer 7 | . 1 4 . 2 Grunt 1 | . . . 1 . Sentry 2 | . . . 2 . Assembled 1 | . . . . 1 Best Kill Streak 3 | . 1 3 1 2 Combat Bots Only 3 | . 1 3 1 2 Max Kills in Single Turn 1 | . 1 1 1 1 Gunslinging . | . . . . . Exploded . | . . . . . Melee . | . . . . . Uniques/NPCs Destroyed 1 | . . . . 1 YI-UF0 (-9/Mines) Combat | -11 -10 -10 -9 -9 -------- Run | Scr Mat Min Mat Min Damage Taken 886 | . 26 320 98 442 Core 185 | . . 46 39 100 Absorbed by Shields . | . . . . . Core Remaining (%) 75 | 100 . 51 . . Volleys Fired 56 | . 3 28 10 15 Largest 3 | . 2 2 3 3 Hottest 189 | . 40 94 189 189 Shots Fired 114 | . 6 51 30 27 Gun 102 | . 6 39 30 27 Cannon 12 | . . 12 . . Launcher . | . . . . . Special . | . . . . . Kinetic 40 | . 6 34 . . Thermal 45 | . . . 30 15 Explosive . | . . . . . Electromagnetic 29 | . . 17 . 12 Robot Hit Streak 24 | . 1 8 12 24 Robot Miss Streak 3 | . 2 2 3 3 Penetration Max . | . . . . . Secondary Targets 1 | . . . . 1 Max Gunslinging Chain 1 | . . . . 1 Shots Hit Robots 62 | . 1 24 19 18 Core Hits 23 | . 1 10 6 6 Critical Hits . | . . . . . Critical Kills . | . . . . . Critical Parts Destroyed . | . . . . . Melee Attacks . | . . . . . Impact . | . . . . . Slashing . | . . . . . Piercing . | . . . . . Sneak Attacks . | . . . . . Combat Hostiles . | . . . . . Follow-up Attacks . | . . . . . Damage Inflicted 867 | . 10 249 321 287 Guns 817 | . 10 199 321 287 Cannons 46 | . . 46 . . Explosions . | . . . . . Melee . | . . . . . Ramming 4 | . . 4 . . Kinetic 132 | . 10 122 . . Thermal 524 | . . . 321 203 Explosive . | . . . . . Electromagnetic 207 | . . 123 . 84 Impact . | . . . . . Slashing . | . . . . . Piercing . | . . . . . Highest Corruption 4 | . . . . 4 Average Corruption 4 | . . . . 4 Corruption Purged . | . . . . . Overload Shots . | . . . . . Overflow Damage 4 | . . 4 . . Projectiles 4 | . . 4 . . Explosions . | . . . . . Melee . | . . . . . Knockbacks . | . . . . . Impact . | . . . . . Kinetic . | . . . . . Secondary . | . . . . . Self-Inflicted Damage 2 | . . 2 . . Shots . | . . . . . Rammed 1 | . . 1 . . Targets Rammed 1 | . . 1 . . Kicked . | . . . . . Crushed . | . . . . . Highest Temperature 244 | . . 18 244 133 Average Temperature 62 | . . 13 84 37 Received Heat Transfer 104 | . . 51 33 20 Siege Activations . | . . . . . Robots Corrupted . | . . . . . Combat Hostiles . | . . . . . Parts Fried . | . . . . . Impact Corruptions . | . . . . . Robots Melted . | . . . . . Combat Hostiles . | . . . . . Parts Melted 4 | . . . 3 1 Heat Transferred 1147 | . . . 703 444 Parts Sabotaged . | . . . . . Parts Stolen . | . . . . . Parts Stripped . | . . . . . Power Chain Reactions . | . . . . . Missiles Intercepted . | . . . . . Alert | -11 -10 -10 -9 -9 ------- Run | Scr Mat Min Mat Min Peak Influence 298 | . 95 298 204 238 Initial 71 | . . 36 57 71 Average 167 | . 35 186 126 211 Maximum Alert Level 1 | . . 1 1 1 Low Security (%) 53 | 100 100 44 98 23 Level 1 46 | . . 55 1 76 Level 2 . | . . . . . Level 3 . | . . . . . Level 4 . | . . . . . Level 5 . | . . . . . High Security . | . . . . . Max Security . | . . . . . Squads Dispatched 5 | . . 1 2 2 Investigation 4 | . . 1 1 2 Extermination . | . . . . . Reinforcement 1 | . . . 1 . Assault . | . . . . . Garrison . | . . . . . Intercept . | . . . . . Construction Impeded . | . . . . . Haulers Reinforced . | . . . . . Stealth | -11 -10 -10 -9 -9 --------- Run | Scr Mat Min Mat Min Distress Signals 2 | . . . 2 . Communications Jammed . | . . . . . Distress Signals . | . . . . . Times Spotted 39 | . 3 14 7 15 Peak Tracking Total 16 | . 3 3 4 16 Tactical Retreats . | . . . . . Traps | -11 -10 -10 -9 -9 ------- Run | Scr Mat Min Mat Min Traps Triggered 3 | . 1 1 1 . Indirectly . | . . . . . Trap Hack Attempts . | . . . . . Triggered . | . . . . . Disarmed . | . . . . . Reprogrammed . | . . . . . Reused . | . . . . . Traps Extracted . | . . . . . Installed . | . . . . . Triggered . | . . . . . Machines | -11 -10 -10 -9 -9 ---------- Run | Scr Mat Min Mat Min Machines Disabled 2 | . . 1 . 1 Max in Single Turn 1 | . . . . 1 Machines Sabotaged 2 | . . 1 . 1 Garrisons Compromised . | . . . . . Overloaded Fab Kills . | . . . . . Fab Network Shutdowns . | . . . . . Hacking | -11 -10 -10 -9 -9 --------- Run | Scr Mat Min Mat Min Machines Accessed 4 | . . 2 . 2 Terminals 2 | . . 1 . 1 Fabricators . | . . . . . Repair Stations . | . . . . . Recycling Units . | . . . . . Scanalyzers . | . . . . . Garrison Access . | . . . . . Total Hacks 6 | . . 2 . 4 Successful 5 | . . 2 . 3 Failed 1 | . . . . 1 Catastrophic . | . . . . . Database Lockouts . | . . . . . Manual 2 | . . 1 . 1 Terminals 4 | . . 1 . 3 Fabricators . | . . . . . Repair Stations . | . . . . . Recycling Units . | . . . . . Scanalyzers . | . . . . . Garrison Access . | . . . . . Terminal Hacks 3 | . . 1 . 2 Open Door 2 | . . 1 . 1 Dispatch Records 1 | . . . . 1 Fabricator Hacks . | . . . . . Repair Station Hacks . | . . . . . Recycling Unit Hacks . | . . . . . Scanalyzer . | . . . . . Garrison Access Hacks . | . . . . . Unauthorized Hacks 2 | . . 1 . 1 Terminals 2 | . . 1 . 1 Sabotage 2 | . . 1 . 1 Fabricators . | . . . . . Repair Stations . | . . . . . Recycling Units . | . . . . . Scanalyzers . | . . . . . Garrison Access . | . . . . . Data Cores Recovered . | . . . . . Used . | . . . . . Hacking Detections 1 | . . . . 1 Full Trace Events . | . . . . . Feedback Events . | . . . . . Feedback Blocked . | . . . . . Robot Schematics Acquired . | . . . . . Robots Built . | . . . . . Matter . | . . . . . Time . | . . . . . Total Robot Build Rating . | . . . . . Part Schematics Acquired . | . . . . . Parts Built . | . . . . . Matter . | . . . . . Time . | . . . . . Total Part Build Rating . | . . . . . Parts Repaired . | . . . . . Time . | . . . . . Parts Recycled . | . . . . . Recycled Matter . | . . . . . Retrieved Matter . | . . . . . Retrieved Components . | . . . . . Parts Scanalyzed . | . . . . . Part Schematics Acquired . | . . . . . Parts Damaged . | . . . . . Bothacking | -11 -10 -10 -9 -9 ------------ Run | Scr Mat Min Mat Min Used RIF Installer . | . . . . . Robots Hacked . | . . . . . Non-combat . | . . . . . Combat . | . . . . . Robot Hacks Applied . | . . . . . Relay Couplers Released . | . . . . . Robots Rewired . | . . . . . Allies Hacked . | . . . . . Hacks Repelled . | . . . . . Allies | -11 -10 -10 -9 -9 -------- Run | Scr Mat Min Mat Min Total Allies 3 | . 1 2 . . Largest Group 3 | . 1 3 3 1 Highest-Rated Group 105 | . 55 98 105 65 Highest-Rated Ally 65 | . 55 56 65 65 Total Orders . | . . . . . Ally Attacks 63 | . 7 30 13 13 Total Damage 966 | . 57 473 163 273 Kills 18 | . 3 9 2 4 Allies Corrupted . | . . . . . Allies Melted 1 | . . . . 1 Intel | -11 -10 -10 -9 -9 ------- Run | Scr Mat Min Mat Min Robot Analysis Total . | . . . . . Derelict Logs Recovered 1 | . . 1 . . Drone Launches . | . . . . . Drone Recoveries . | . . . . . Exploration | -11 -10 -10 -9 -9 ------------- Run | Scr Mat Min Mat Min Turns Passed 1378 | 41 87 800 199 251 Spaces Moved 1158 | 43 76 722 120 197 Core 17 | 15 . 2 . . Treads . | . . . . . Legs . | . . . . . Wheels 1141 | 28 76 720 120 197 Hover . | . . . . . Flight . | . . . . . Fastest Speed 50 | 50 90 80 100 100 Average Speed 93 | 75 90 89 108 102 Slowest Speed 250 | 90 90 250 110 110 Overloaded Moves . | . . . . . Propulsion Burnouts . | . . . . . Robots Hopped . | . . . . . Cave-ins Triggered . | . . . . . Exploration Rate (%) 40 | 3 29 98 16 55 Regions Visited 4 Branch Regions 2 Pre-discovered Areas . | . . . . . Known Exits Taken 2 | . 1 1 . . Unknown Exits Taken 2 | 1 . . 1 . Scrap Searched . | . . . . . Spaces Dug 1 | . . 1 . . Terrain Destroyed 3 | . . 3 . . Melee . | . . . . . Projectile 3 | . . 3 . . AOE . | . . . . . Terrain Rammed . | . . . . . Walls Destroyed . | . . . . . Machines Disabled . | . . . . . Actions | -11 -10 -10 -9 -9 --------- Run | Scr Mat Min Mat Min Total 1355 | 48 89 830 166 222 Wait 93 | . 6 61 26 . Move 1154 | 42 75 721 119 197 Hop . | . . . . . Pick Up 8 | . . 5 1 2 Fast Attach 19 | 6 3 2 5 3 Attach 6 | . . 4 1 1 Detach 2 | . . 2 . . Swap 3 | . . 2 . 1 Drop 13 | . 2 4 4 3 Fire 56 | . 3 28 10 15 Melee . | . . . . . Ram 1 | . . 1 . . Kick . | . . . . . Crush . | . . . . . Escape Stasis . | . . . . . Rewire . | . . . . . Trap . | . . . . . Miscellaneous . | . . . . . Route ------- -11/Scrapyard -10/Materials -10/Mines (discovered 2 exits: *Mat x2) -9/Materials -9/Mines History --------- Turn | Location | Event 3 | -11/Scrapyard | Discovered new exit (range 15) 42 | -11/Scrapyard | Entered Materials 116 | -10/Materials | Discovered new exit (range 8) 122 | -10/Materials | Identified exit to Mines 129 | -10/Materials | Entered Mines 129 | -10/Mines | Accompanied by 1 ally 341 | -10/Mines | Identified exit to Materials 345 | -10/Mines | Build established: Mutant 429 | -10/Mines | Discovered exit to Materials (range 15) 444 | -10/Mines | Met a Derelict who couldn't figure out how to use a Trap Extractor 929 | -10/Mines | Entered Materials 929 | -9/Materials | Accompanied by 3 allies 929 | -9/Materials | Evolved 2 slots: Utility x1, Weapon x1 934 | -9/Materials | Led the pair of lost Derelicts to an unsafe place 1090 | -9/Materials | Discovered new exit (range 7) 1128 | -9/Materials | Entered Mines 1128 | -9/Mines | Accompanied by 1 ally 1201 | -9/Mines | Core integrity fell below 50% 1203 | -9/Mines | Allies destroyed YI-UF0 1227 | -9/Mines | Lost 3 parts (1p2w) 1301 | -9/Mines | Met a Derelict shopkeep closing up shop 1347 | -9/Mines | Assembled infested the area 1364 | -9/Mines | Core integrity fell below 20% 1369 | -9/Mines | Met 8R-AWN 1379 | -9/Mines | Core destroyed Last Messages --------------- 8R-AWN: Hm, I'm not getting any readings that show these Assembled are different than what we have already... But you... you look interesting. Maybe they'll want to see you. Come along little bot, it's safer with us than out here, anyway. 01371_ as-17989 destroyed. 01372_ HV Slug penetrates Wall. 01372_ HV Slug penetrates D-53 Grenadier. 01372_ HV Slug penetrates Wall. 01374_ as-38948 destroyed. 01374_ as-83379 destroyed. 01374_ as-13430 destroyed. 01374_ as-64052 destroyed. 01374_ as-69977 destroyed. 01374_ as-84297 destroyed. 01377_ K-01 Serf collects debris. 01377_ as-42689 destroyed. 01377_ as-84423 destroyed. 01377_ as-16628 destroyed. 01377_ as-27407 destroyed. 01379_ as-54858 destroyed. Map ----- +----------------------------------------------------+ | # #????????????????# ## X #?? | | #???????????????# ### #### [ ##? | | #???????????????# """ """ #?# #??# ## | | ##???????????????# """ """ #?# #??# # | | ##????????????????# """ """ #?# #??# # | | ##?????????????????##############?# #??## | | ??????????????????????????????????# #???#### | | ??????????????????????????????????# #??????## | | ??????????????????????????????????# ####????## | | ??????????????????????????????????# #?????### | | ??????????????????????????????????#### #??###### | | ?????????????????????????????????????# #??# | | ?????????????????????#???????????????# #??# | | ?????????????????????# ?????????????## #?## ##### | | ????????????????????## #???????????## ### #???? | | ???????????????????? # ;#??######### #???? | | ?????????????????????; # ### * #?? | | ?????????????????????#% %= """ #? | | ?????????????????????# ### =##### """ #? | | ????????????????????## k??#d@#???## """ #? | | ????????????????????# d% ??# #????## #? | | ????????????????????# ## ###???## ##? | | ????????????????????# a % ##???# #?? | | ????????????????????## ##??# #?? | | ?????????????????#### aa #??## ##?? | | ???????????????# < % @ #??## ##??? | | ??????????????# ! # #??? ##???? | | ??????????????# a ### #???# #????? | | ??????????????## a #?? #????# #????? | | ???????????????## #?? #???? #????? | | ????????????????### ## ??? ??? ??????? | | ??????????????????## #?## ?? ?????????? | | ???????????????????## #????### ? ####?????????? | | ????????????????????###???????????###????????????? | | ?????????????????????????????????????????????????? | | | | | | | | | | | | | | | | | | | | | | | | | | | | | | | +----------------------------------------------------+ Best States ------------- Heat Dissipation 42 Energy Generation 16 Energy Capacity 590 Matter Stores 300 Matter Capacity 300 Sight Range 16 Robot Scan Range 16 Terrain Scan Density 60 Evasion (%) 50 Offensive Hacking 10 Item Schematics ----------------- None Robot Schematics ------------------ None Fabricated ------------ Nothing Alien Tech Used ----------------- None Achievements -------------- None Challenges ------------ None Player 2 | -11 -10 -10 -9 -9 ---------- Run | Scr Mat Min Mat Min Slots Evolved 2 | . . 2 . . Power . | . . . . . Propulsion 1 | . . 1 . . Utility . | . . . . . Weapon 1 | . . 1 . . Parts Attached 21 | . 7 3 4 7 Parts Lost 11 | . . 1 2 8 Damage Taken 906 | . 45 120 77 664 Core 351 | . 32 43 . 276 Player 2/Cogmind (%) 65 | . 100 48 . 73 Absorbed by Shields . | . . . . . Damage Inflicted 795 | . 57 345 120 273 Player 2/Cogmind (%) 47 | . 85 58 27 48 Combat Hostiles Destroyed 14 | . 2 6 2 4 Player 2/Cogmind (%) 56 | . 66 60 40 57 Game ------ Seed TiamatHugeMallet Manual? 0 Play Time 00:12:46 Cumulative 302.4 hours Start 2020.09.28 @ 17:57:01 End 2020.09.28 @ 18:07:07 Sessions 1 Manual Loads 0 Difficulty Rogue Special Mode AFD2020/Player2 Game No. 162 Rogue 5 Adventurer 52 Explorer 105 Win Type - Total 19 Types 17/0/1/0/0/0/0/1/0 Lore% 61 Gallery% 85 Achievement% 63 Wizard Run 0 Options --------- ASCII 0 Keyboard 0 Movement Mouse Keybinds 0 Fullscreen 2 Font 18/Terminus Map View 76x50 Tactical HUD 1 Map Filters NONE Filters SATURATION(100) Steam 1 RUN: ddf1916d-76cf-43f6-a158-ce5619bc32b1